fUSD/lending_fUSD_20240628
["ID","MTS","AMOUNT","RATE_DAILY","PERIOD"]
[330563663,1719574266143,-1339.33,0.00019178,2]
[330563664,1719574266153,-201.936095,0.00019178,2]
[330563665,1719574266164,-500.0,0.00019178,2]
[330563666,1719574266175,-201.936095,0.00019178,2]
[330563667,1719574266185,-500.0,0.00019178,2]
[330563668,1719574266196,-201.936095,0.00019178,2]
[330563669,1719574266208,-201.936095,0.00019178,2]
[330563670,1719574266222,-201.936095,0.00019178,2]
[330563671,1719574266235,-201.936095,0.00019178,2]
[330563672,1719574266245,-3385.76,0.00019178,2]
[330563673,1719574266256,-201.936095,0.00019178,2]
[330563674,1719574266267,-201.936095,0.00019178,2]
[330563675,1719574266276,-201.936095,0.00019178,2]
[330563676,1719574266287,-201.936095,0.00019178,2]
[330563677,1719574266298,-201.936089,0.00019178,2]
[330563678,1719574266309,-500.0,0.00019178,2]
[330563679,1719574266319,-782.44,0.00019178,2]
[330563680,1719574266329,-500.0,0.00019178,2]
[330563681,1719574266340,-500.0,0.00019178,2]
[330563682,1719574266350,-562.7,0.00019178,2]
[330563683,1719574266360,-500.0,0.00019178,2]
[330563684,1719574266372,-1376.55,0.00019178,2]
[330563685,1719574266382,-500.0,0.00019178,2]
[330563686,1719574266393,-500.0,0.00019178,2]
[330563687,1719574266403,-2841.73,0.00019178,2]
[330563688,1719574266413,-500.0,0.00019178,2]
[330563689,1719574266424,-2300.99,0.00019178,2]
[330563690,1719574266434,-151.0,0.00019178,2]
[330563691,1719574266444,-500.0,0.00019178,2]
[330563692,1719574266455,-151.0,0.00019178,2]
[330563693,1719574266466,-500.0,0.00019178,2]
[330563694,1719574266476,-1125.23,0.00019178,2]
[330563695,1719574266487,-151.0,0.00019178,2]
[330563696,1719574266496,-151.0,0.00019178,2]
[330563697,1719574266506,-151.0,0.00019178,2]
[330563698,1719574266517,-500.0,0.00019178,2]
[330563699,1719574266527,-151.0,0.00019178,2]
[330563700,1719574266536,-500.0,0.00019178,2]
[330563701,1719574266546,-3218.75,0.00019178,2]
[330563702,1719574266556,-500.0,0.00019178,2]
[330563703,1719574266566,-500.0,0.00019178,2]
[330563704,1719574266575,-500.0,0.00019178,2]
[330563705,1719574266585,-500.0,0.00019178,2]
[330563706,1719574266594,-1000.0,0.00019178,2]
[330563707,1719574266604,-500.0,0.00019178,2]
[330563708,1719574266613,-1720.14,0.00019178,2]
[330563709,1719574266624,-151.0,0.00019178,2]
[330563710,1719574266634,-500.0,0.00019178,2]
[330563711,1719574266644,-151.0,0.00019178,2]
[330563712,1719574266654,-500.0,0.00019178,2]
[330563713,1719574266664,-500.0,0.00019178,2]
[330563714,1719574266674,-151.0,0.00019178,2]
[330563715,1719574266683,-500.0,0.00019178,2]
[330563716,1719574266693,-151.0,0.00019178,2]
[330563717,1719574266703,-500.0,0.00019178,2]
[330563718,1719574266713,-4317.45,0.00019178,2]
[330563719,1719574266723,-1111.56,0.00019178,2]
[330563720,1719574266733,-500.0,0.00019178,2]
[330563721,1719574266743,-192.79393,0.00019178,2]
[330563722,1719574266755,-541.59971358,0.00019178,2]
[330563723,1719574266764,-786.42,0.00019178,2]
[330563724,1719574266774,-500.0,0.00019178,2]
[330563725,1719574266784,-1805.48,0.00019178,2]
[330563726,1719574266794,-500.0,0.00019178,2]
[330563727,1719574266804,-500.0,0.00019178,2]
[330563728,1719574266813,-151.0,0.00019178,2]
[330563729,1719574266823,-500.0,0.00019178,2]
[330563730,1719574266832,-151.0,0.00019178,2]
[330563731,1719574266842,-151.0,0.00019178,2]
[330563732,1719574266851,-151.0,0.00019178,2]
[330563733,1719574266860,-602.781811,0.00019178,2]
[330563734,1719574266871,-172.439984,0.00019178,2]
[330563735,1719574266880,-602.781811,0.00019178,2]
[330563736,1719574266890,-602.781811,0.00019178,2]
[330563737,1719574266903,-602.781811,0.00019178,2]
[330563738,1719574266913,-602.781811,0.00019178,2]
[330563739,1719574266923,-500.0,0.00019178,2]
[330563740,1719574266933,-602.781811,0.00019178,2]
[330563741,1719574266943,-602.781811,0.00019178,2]
[330563742,1719574266953,-602.781811,0.00019178,2]
[330563743,1719574266963,-602.781811,0.00019178,2]
[330563744,1719574266973,-500.0,0.00019178,2]
[330563745,1719574266983,-602.781811,0.00019178,2]
[330563746,1719574266993,-602.781811,0.00019178,2]
[330563747,1719574267002,-602.781811,0.00019178,2]
[330563748,1719574267012,-2640.97,0.00019178,2]
[330563749,1719574267022,-562.71,0.00019178,2]
[330563750,1719574267033,-602.781811,0.00019178,2]
[330563751,1719574267043,-602.781811,0.00019178,2]
[330563752,1719574267055,-500.0,0.00019178,2]
[330563753,1719574267065,-602.781811,0.00019178,2]
[330563754,1719574267076,-3559.94,0.00019178,2]
[330563755,1719574267086,-602.781811,0.00019178,2]
[330563756,1719574267096,-540.24,0.00019178,2]
[330563757,1719574267107,-602.781811,0.00019178,2]
[330563758,1719574267116,-500.0,0.00019178,2]
[330563759,1719574267127,-500.0,0.00019178,2]
[330563760,1719574267142,-723.3,0.00019178,2]
[330563761,1719574267152,-602.781811,0.00019178,2]
[330563762,1719574267161,-602.781811,0.00019178,2]
[330563763,1719574267171,-1096.58,0.00019178,2]
[330563764,1719574267183,-602.781815,0.00019178,2]
[330563765,1719574267193,-3967.76,0.00019178,2]
[330563766,1719574267203,-615.35,0.00019178,2]
[330563767,1719574267214,-500.0,0.00019178,2]
[330563768,1719574267224,-4341.86,0.00019178,2]
[330563769,1719574267234,-1150.11,0.00019178,2]
[330563770,1719574267244,-703.65,0.00019178,2]
[330563771,1719574267254,-151.0,0.00019178,2]
[330563772,1719574267264,-961.87,0.00019178,2]
[330563773,1719574267274,-1842.29,0.00019178,2]
[330563774,1719574267284,-915.41,0.00019178,2]
[330563775,1719574267293,-500.0,0.00019178,2]
[330563776,1719574267305,-500.0,0.00019178,2]
[330563777,1719574267315,-500.0,0.00019178,2]
[330563778,1719574267325,-151.0,0.00019178,2]
[330563779,1719574267335,-500.0,0.00019178,2]
[330563780,1719574267345,-151.0,0.00019178,2]
[330563781,1719574267356,-151.0,0.00019178,2]
[330563782,1719574267365,-151.0,0.00019178,2]
[330563783,1719574267376,-151.0,0.00019178,2]
[330563784,1719574267386,-151.0,0.00019178,2]
[330563785,1719574267396,-151.0,0.00019178,2]
[330563786,1719574267406,-151.0,0.00019178,2]
[330563787,1719574267416,-151.0,0.00019178,2]
[330563788,1719574267425,-151.0,0.00019178,2]
[330563789,1719574267435,-151.0,0.00019178,2]
[330563790,1719574267444,-157.76848,0.00019178,2]
[330563791,1719574267454,-151.0,0.00019178,2]
[330563792,1719574267464,-703.37,0.00019178,2]
[330563793,1719574267474,-500.0,0.00019178,2]
[330563794,1719574267483,-1268.75,0.00019178,2]
[330563795,1719574267493,-151.0,0.00019178,2]
[330563796,1719574267503,-500.0,0.00019178,2]
[330563797,1719574267513,-151.0,0.00019178,2]
[330563798,1719574267523,-151.0,0.00019178,2]
[330563799,1719574267533,-2223.15,0.00019178,2]
[330563800,1719574267543,-151.0,0.00019178,2]
[330563801,1719574267556,-1237.09,0.00019178,2]
[330563802,1719574267566,-2129.8,0.00019178,2]
[330563803,1719574267577,-500.0,0.00019178,2]
[330563804,1719574267587,-226.115784,0.00019178,2]
[330563805,1719574267597,-151.0,0.00019178,2]
[330563806,1719574267607,-151.0,0.00019178,2]
[330563807,1719574267617,-969.81,0.00019178,2]
[330563808,1719574267627,-539.56,0.00019178,2]
[330563809,1719574267636,-151.0,0.00019178,2]
[330563810,1719574267647,-151.0,0.00019178,2]
[330563811,1719574267657,-500.0,0.00019178,2]
[330563812,1719574267667,-259.81965,0.00019178,2]
[330563813,1719574267678,-4089.04,0.00019178,2]
[330563814,1719574267687,-500.0,0.00019178,2]
[330563815,1719574267698,-537.78,0.00019178,2]
[330563816,1719574267707,-500.0,0.00019178,2]
[330563817,1719574267717,-500.0,0.00019178,2]
[330563818,1719574267727,-1085.33,0.00019178,2]
[330563819,1719574267736,-723.57,0.00019178,2]
[330563820,1719574267746,-500.0,0.00019178,2]
[330563821,1719574267756,-3505.55,0.00019178,2]
[330563822,1719574267766,-2682.14,0.00019178,2]
[330563823,1719574267776,-500.0,0.00019178,2]
[330563824,1719574267786,-500.0,0.00019178,2]
[330563825,1719574267797,-500.0,0.00019178,2]
[330563826,1719574267808,-192.5078,0.00019178,2]
[330563827,1719574267818,-500.0,0.00019178,2]
[330563828,1719574267828,-192.5078,0.00019178,2]
[330563829,1719574267838,-1387.76,0.00019178,2]
[330563830,1719574267849,-192.5078,0.00019178,2]
[330563831,1719574267859,-192.5078,0.00019178,2]
[330563832,1719574267870,-192.5078,0.00019178,2]
[330563833,1719574267880,-3307.11,0.00019178,2]
[330563834,1719574267891,-151.0,0.00019178,2]
[330563835,1719574267901,-192.5078,0.00019178,2]
[330563836,1719574267910,-151.0,0.00019178,2]
[330563837,1719574267920,-192.5078,0.00019178,2]
[330563838,1719574267929,-192.5078,0.00019178,2]
[330563839,1719574267939,-151.0,0.00019178,2]
[330563840,1719574267948,-192.5078,0.00019178,2]
[330563841,1719574267958,-151.0,0.00019178,2]
[330563842,1719574267968,-192.5078,0.00019178,2]
[330563843,1719574267977,-151.0,0.00019178,2]
[330563844,1719574267987,-151.0,0.00019178,2]
[330563845,1719574267996,-192.5078,0.00019178,2]
[330563846,1719574268006,-151.0,0.00019178,2]
[330563847,1719574268015,-151.0,0.00019178,2]
[330563848,1719574268025,-192.5078,0.00019178,2]
[330563849,1719574268035,-151.0,0.00019178,2]
[330563850,1719574268044,-500.0,0.00019178,2]
[330563851,1719574268056,-151.0,0.00019178,2]
[330563852,1719574268572,-192.5078,0.00019178,2]
[330563853,1719574268590,-151.0,0.00019178,2]
[330563854,1719574268600,-500.0,0.00019178,2]
[330563855,1719574268610,-151.0,0.00019178,2]
[330563856,1719574268620,-151.0,0.00019178,2]
[330563857,1719574268630,-523.97,0.00019178,2]
[330563858,1719574268641,-151.0,0.00019178,2]
[330563859,1719574268650,-192.5078,0.00019178,2]
[330563860,1719574268660,-151.0,0.00019178,2]
[330563861,1719574268671,-192.5078,0.00019178,2]
[330563862,1719574268680,-151.0,0.00019178,2]
[330563863,1719574268691,-192.5078,0.00019178,2]
[330563864,1719574268701,-151.0,0.00019178,2]
[330563865,1719574268710,-500.0,0.00019178,2]
[330563866,1719574268720,-192.5078,0.00019178,2]
[330563867,1719574268729,-204.95318,0.00019178,2]
[330563868,1719574268739,-615.36,0.00019178,2]
[330563869,1719574268749,-192.5078,0.00019178,2]
[330563870,1719574268759,-500.0,0.00019178,2]
[330563871,1719574268769,-192.5078,0.00019178,2]
[330563872,1719574268778,-500.0,0.00019178,2]
[330563873,1719574268788,-192.507796,0.00019178,2]
[330563874,1719574268798,-1392.61,0.00019178,2]
[330563875,1719574268810,-1094.82,0.00019178,2]
[330563876,1719574268819,-1219.53,0.00019178,2]
[330563877,1719574268829,-500.0,0.00019178,2]
[330563878,1719574268838,-500.0,0.00019178,2]
[330563879,1719574268847,-398.09071362,0.00019178,2]
[330563880,1719574268859,-957.94,0.00019178,2]
[330563881,1719574268869,-5341.53,0.00019178,2]
[330563882,1719574268879,-1512.31,0.00019178,2]
[330563883,1719574268890,-4235.09,0.00019178,2]
[330563884,1719574268901,-1457.37,0.00019178,2]
[330563885,1719574268910,-844.22,0.00019178,2]
[330563886,1719574268921,-503.19,0.00019178,2]
[330563887,1719574268931,-4136.99,0.00019178,2]
[330563888,1719574268940,-615.01,0.00019178,2]
[330563889,1719574268950,-1127.62,0.00019178,2]
[330563890,1719574268960,-683.57,0.00019178,2]
[330563891,1719574268971,-978.41,0.00019178,2]
[330563892,1719574268981,-500.0,0.00019178,2]
[330563893,1719574268990,-500.0,0.00019178,2]
[330563894,1719574269000,-500.0,0.00019178,2]
[330563895,1719574269010,-500.0,0.00019178,2]
[330563896,1719574269020,-1042.36,0.00019178,2]
[330563897,1719574269030,-1613.08,0.00019178,2]
[330563898,1719574269040,-1863.64,0.00019178,2]
[330563899,1719574269050,-151.0,0.00019178,2]
[330563900,1719574269060,-500.0,0.00019178,2]
[330563901,1719574269070,-244.83187999,0.00019178,2]
[330563902,1719574269080,-500.0,0.00019178,2]
[330563903,1719574269090,-151.0,0.00019178,2]
[330563904,1719574269099,-3107.5,0.00019178,2]
[330563905,1719574269109,-500.0,0.00019178,2]
[330563906,1719574269120,-152.445076,0.00019178,2]
[330563907,1719574269132,-594.54,0.00019178,2]
[330563908,1719574269143,-1084.94,0.00019178,2]
[330563909,1719574269153,-500.0,0.00019178,2]
[330563910,1719574269163,-500.0,0.00019178,2]
[330563911,1719574269174,-830.4,0.00019178,2]
[330563912,1719574269184,-1207.41,0.00019178,2]
[330563913,1719574269195,-954.1,0.00019178,2]
[330563914,1719574269205,-11737.51,0.00019178,2]
[330563915,1719574269218,-500.0,0.00019178,2]
[330563916,1719574269229,-1021.46,0.00019178,2]
[330563917,1719574269240,-3292.24,0.00019178,2]
[330563918,1719574269252,-500.0,0.00019178,2]
[330563919,1719574269262,-2043.07,0.00019178,2]
[330563920,1719574269272,-151.0,0.00019178,2]
[330563921,1719574269282,-151.0,0.00019178,2]
[330563922,1719574269292,-500.0,0.00019178,2]
[330563923,1719574269302,-151.0,0.00019178,2]
[330563924,1719574269313,-1630.21,0.00019178,2]
[330563925,1719574269323,-3219.91,0.00019178,2]
[330563926,1719574269333,-151.0,0.00019178,2]
[330563927,1719574269343,-500.0,0.00019178,2]
[330563928,1719574269352,-826.86,0.00019178,2]
[330563929,1719574269362,-2780.72,0.00019178,2]
[330563930,1719574269372,-500.0,0.00019178,2]
[330563931,1719574269382,-862.79,0.00019178,2]
[330563932,1719574269392,-3806.39,0.00019178,2]
[330563933,1719574269402,-1153.4,0.00019178,2]
[330563934,1719574269412,-500.0,0.00019178,2]
[330563935,1719574269422,-500.0,0.00019178,2]
[330563936,1719574269432,-4513.815869,0.00019178,2]
[330563937,1719574269442,-4513.815869,0.00019178,2]
[330563938,1719574269452,-4513.815869,0.00019178,2]
[330563939,1719574269462,-4513.815869,0.00019178,2]
[330563940,1719574269471,-4513.815869,0.00019178,2]
[330563941,1719574269481,-4513.815869,0.00019178,2]
[330563942,1719574269491,-500.0,0.00019178,2]
[330563943,1719574269501,-4513.815869,0.00019178,2]
[330563944,1719574269511,-500.0,0.00019178,2]
[330563945,1719574269521,-4513.815869,0.00019178,2]
[330563946,1719574269530,-4955.38,0.00019178,2]
[330563947,1719574269540,-4513.815869,0.00019178,2]
[330563948,1719574269550,-2795.0,0.00019178,2]
[330563949,1719574269561,-4513.815869,0.00019178,2]
[330563950,1719574269570,-500.0,0.00019178,2]
[330563951,1719574269580,-4513.815869,0.00019178,2]
[330563952,1719574269590,-4513.815869,0.00019178,2]
[330563953,1719574269600,-4513.815869,0.00019178,2]
[330563954,1719574269611,-500.0,0.00019178,2]
[330563955,1719574269622,-4513.815869,0.00019178,2]
[330563956,1719574269637,-4513.815869,0.00019178,2]
[330563957,1719574269648,-4513.815869,0.00019178,2]
[330563958,1719574269658,-4513.815869,0.00019178,2]
[330563959,1719574269668,-4513.815869,0.00019178,2]
[330563960,1719574269679,-4456.95,0.00019178,2]
[330563961,1719574269690,-4513.815869,0.00019178,2]
[330563962,1719574269701,-648.49,0.00019178,2]
[330563963,1719574269712,-4513.815863,0.00019178,2]
[330563964,1719574269724,-500.0,0.00019178,2]
[330563965,1719574269734,-500.0,0.00019178,2]
[330563966,1719574269745,-500.0,0.00019178,2]
[330563967,1719574269755,-1596.89,0.00019178,2]
[330563968,1719574269766,-1872.57,0.00019178,2]
[330563969,1719574269777,-982.07,0.00019178,2]
[330563970,1719574269787,-3187.6,0.00019178,2]
[330563971,1719574269798,-17275.43546779,0.00019178,2]
[330563972,1719574310065,167.7,0.00018849,30]
[330563976,1719574463215,267.10146818,0.00010976,2]
[330563978,1719574489705,150.0,0.00010976,2]
[330563979,1719574489729,150.0,0.00010976,2]
[330563980,1719574489752,150.0,0.00010976,2]
[330563981,1719574489776,150.0,0.00010976,2]
[330563982,1719574489798,150.0,0.00010976,2]
[330563983,1719574489820,150.0,0.00010976,2]
[330563984,1719574489844,59.32702903,0.00010976,2]
[330563986,1719574492186,150.0,0.00010976,2]
[330563987,1719574492213,210.85519415,0.00010976,2]
[330563988,1719574492245,689.14480585,0.00010976,2]
[330563989,1719574492307,181.02431915,0.00010976,2]
[330563990,1719574494898,552.57239721,0.00010976,2]
[330563991,1719574497740,-496.10852137,0.00013304,2]
[330563992,1719574508438,-205.45143135,0.00013304,2]
[330563994,1719574528317,-926.0826496,0.00013304,2]
[330564009,1719574894007,150.13498304,0.0003121,30]
[330564029,1719575121867,280.1896598,0.000225,30]
[330564094,1719575431440,-318.64482262,0.00011042,2]
[330564095,1719575431453,-572.89127295,0.00011042,2]
[330564099,1719575431550,-4258.66766243,0.00011042,2]
[330564100,1719575431559,-328.62827887,0.00011098,2]
[330564101,1719575431568,-19486.1693165,0.000112,2]
[330564102,1719575431577,-699.53,0.00012697,2]
[330564103,1719575431587,-1757.45,0.00013233,2]
[330564104,1719575431597,-286.59,0.00013309,2]
[330564105,1719575431607,-150.0,0.00013402,2]
[330564106,1719575431616,-250.0,0.00013432,2]
[330564107,1719575431625,-356.06,0.00013585,2]
[330564108,1719575431634,-150.0,0.00013633,2]
[330564109,1719575431644,-250.0,0.00013634,2]
[330564110,1719575431653,-21493.77,0.00013634,2]
[330564111,1719575431662,-499.99,0.00013634,2]
[330564112,1719575431671,-174.31,0.00013699,2]
[330564113,1719575431681,-500.0,0.000137,5]
[330564114,1719575431691,-740.63865152,0.0001379,2]
[330564115,1719575431701,-1000.0,0.000138,5]
[330564116,1719575431711,-552.98,0.00013878,2]
[330564117,1719575431721,-5767.84799738,0.0001389,2]
[330564118,1719575431742,-1057.39219013,0.0001389,2]
[330564119,1719575431754,-7497.46026116,0.0001389,2]
[330564120,1719575431764,-9999.99,0.0001389,2]
[330564121,1719575431773,-374.8776,0.000139,2]
[330564123,1719575431782,-168.24712368,0.000139,2]
[330564125,1719575431792,-197.09674146,0.000139,2]
[330564126,1719575431802,-363.3224,0.000139,2]
[330564127,1719575431811,-1908.50031308,0.000139,2]
[330564128,1719575431820,-2355.93,0.000139,2]
[330564129,1719575431830,-1500.0,0.000139,5]
[330564130,1719575431839,-6859.05569181,0.000139,2]
[330564133,1719575431848,-170.04121699,0.000139,2]
[330564136,1719575431857,-319.69783831,0.000139,2]
[330564139,1719575431866,-188.23245816,0.0001399,2]
[330564142,1719575431875,-290700.13715119,0.00014,2]
[330564144,1719575431888,-774.9999974,0.00014,2]
[330564148,1719575431922,-260177.53324922,0.00014,2]
[330564152,1719575431951,-2605.7965384,0.00014,2]
[330564153,1719575431962,-716.59388063,0.00014,2]
[330564154,1719575431973,-2657.0803135,0.00014,2]
[330564155,1719575431985,-726.33466909,0.00014,2]
[330564163,1719575437427,-295.18311348,0.00014,2]
[330564164,1719575437439,-1988.64726437,0.00014,2]
[330564165,1719575437451,-12728.11367876,0.00014,2]
[330564166,1719575437463,-694.18570032,0.00014,2]
[330564167,1719575437475,-450.95372915,0.00014,2]
[330564168,1719575437495,-3805.88771306,0.00014,2]
[330564169,1719575437508,-41696.13201306,0.00014,2]
[330564170,1719575437523,-3411.68718184,0.00014,2]
[330564171,1719575437535,-684.64990068,0.00014,2]
[330564172,1719575437547,-407.11805532,0.00014,2]
[330564173,1719575437561,-791.60346946,0.00014,2]
[330564174,1719575437704,-181771.56179283,0.00014,2]
[330564175,1719575437716,-697.50349286,0.00014,2]
[330564176,1719575437727,-381.03529472,0.00014,2]
[330564177,1719575437739,-967.5007119,0.00014,2]
[330564178,1719575437751,-2000.0,0.00014,2]
[330564179,1719575437762,-795.98255388,0.00014,2]
[330564182,1719575437782,-575.1076995,0.00014,2]
[330564184,1719575437793,-490.1733676,0.00014,2]
[330564186,1719575437807,-1202.53952564,0.00014,2]
[330564189,1719575437819,-311.498076,0.00014,2]
[330564192,1719575437840,-348.40375138,0.00014,2]
[330564193,1719575437851,-879436.88018533,0.00014,2]
[330564194,1719575437863,-1698.02186945,0.00014,2]
[330564200,1719575440224,-563.11050946,0.00014,2]
[330564201,1719575440236,-3552.96322013,0.00014,2]
[330564202,1719575440247,-678.34712629,0.00014,2]
[330564203,1719575440274,-2887.67808576,0.00014,2]
[330564204,1719575440285,-807.50002,0.00014,2]
[330564205,1719575440297,-28066.08209664,0.00014,2]
[330564206,1719575440307,-150.99,0.00014,2]
[330564207,1719575440316,-155.27768266,0.00014099,2]
[330564208,1719575440326,-6789.64396498,0.00014452,2]
[330564209,1719575440335,-2751.0,0.00014635,2]
[330564210,1719575440344,-200.0,0.00014674,2]
[330564211,1719575440354,-1908.50031305,0.00014678,2]
[330564212,1719575440363,-262.67,0.00014842,2]
[330564213,1719575440372,-210.0,0.00014956,2]
[330564214,1719575440382,-699.53,0.00014961,2]
[330564215,1719575440391,-12756.89533858,0.00014999,2]
[330564216,1719575440400,-103835.56847191,0.00015,2]
[330564217,1719575440410,-185.0,0.00015027,2]
[330564218,1719575440419,-185.0,0.00015068,2]
[330564219,1719575440428,-174.31,0.00015068,2]
[330564220,1719575440437,-185.0,0.00015109,2]
[330564221,1719575440447,-6789.64396487,0.00015122,2]
[330564222,1719575440457,-185.0,0.0001515,2]
[330564223,1719575440466,-185.0,0.00015191,2]
[330564224,1719575440475,-197.09674146,0.00015195,2]
[330564225,1719575440485,-185.0,0.00015233,2]
[330564226,1719575440494,-185.0,0.00015274,2]
[330564227,1719575440504,-356.06,0.00015283,2]
[330564228,1719575440515,-185.0,0.00015315,2]
[330564229,1719575440527,-185.0,0.00015356,2]
[330564230,1719575440536,-185.0,0.00015397,2]
[330564231,1719575440545,-185.0,0.00015439,2]
[330564232,1719575440556,-1908.50031305,0.00015456,2]
[330564233,1719575440565,-185.0,0.0001548,2]
[330564234,1719575440574,-185.0,0.00015521,2]
[330564235,1719575440586,-185.0,0.00015562,2]
[330564236,1719575440597,-185.0,0.00015603,2]
[330564237,1719575440606,-932.0,0.00015626,2]
[330564238,1719575440616,-185.0,0.00015645,2]
[330564239,1719575440625,-185.0,0.00015686,2]
[330564240,1719575440634,-185.0,0.00015727,2]
[330564241,1719575440643,-185.0,0.00015768,2]
[330564242,1719575440652,-6789.64396487,0.00015791,2]
[330564243,1719575440661,-185.0,0.00015809,2]
[330564244,1719575440670,-167.63,0.00015814,2]
[330564245,1719575440680,-400.0,0.00016,2]
[330564246,1719575440690,-300.09148991,0.00016126,2]
[330564247,1719575440700,-1908.50031305,0.00016233,2]
[330564248,1719575440709,-293.0,0.00016408,2]
[330564249,1719575440719,-174.31,0.00016438,2]
[330564250,1719575440728,-6789.64396487,0.00016461,2]
[330564251,1719575440738,-197.09674146,0.00016489,2]
[330564252,1719575440747,-356.06,0.00016981,2]
[330564253,1719575440756,-1000.0,0.00017,2]
[330564254,1719575440766,-1908.50031305,0.00017011,2]
[330564255,1719575440774,-6789.64396487,0.0001713,2]
[330564256,1719575440783,-699.53,0.00017225,2]
[330564257,1719575440792,-175.55,0.00017312,2]
[330564258,1719575440801,-523.96690629,0.00017566,2]
[330564259,1719575440813,-475.37381688,0.00017566,2]
[330564260,1719575440822,-1000.0,0.00017682,2]
[330564261,1719575440830,-412.4981325,0.00017703,2]
[330564262,1719575440839,-333.52,0.00017736,2]
[330564263,1719575440848,-197.09674146,0.00017784,2]
[330564264,1719575440857,-1908.50031305,0.00017789,2]
[330564265,1719575440866,-6789.64396487,0.000178,2]
[330564266,1719575440875,-5000.0,0.00017807,2]
[330564267,1719575440885,-171.0,0.00018,2]
[330564268,1719575440894,-1758.53588891,0.00018081,2]
[330564269,1719575440904,-281.5182,0.00018115,2]
[330564270,1719575440913,-1830.0,0.00018215,2]
[330564271,1719575440922,-359.0,0.00018215,2]
[330564272,1719575440932,-1655.0,0.00018215,2]
[330564273,1719575440941,-1272.0,0.00018215,2]
[330564274,1719575440950,-812.0,0.00018215,2]
[330564275,1719575440959,-496.304,0.00018215,2]
[330564276,1719575440967,-166.439,0.00018215,2]
[330564277,1719575440977,-443.0,0.00018215,2]
[330564278,1719575440986,-696.434,0.00018215,2]
[330564279,1719575440995,-2412.0,0.00018215,2]
[330564280,1719575441004,-1304.0,0.00018215,2]
[330564281,1719575441013,-150.0,0.00018215,2]
[330564282,1719575441023,-3201.0,0.00018215,2]
[330564283,1719575441032,-1984.0,0.00018215,2]
[330564284,1719575441041,-547.0,0.00018215,2]
[330564285,1719575441050,-291.0,0.00018215,2]
[330564286,1719575441060,-1662.0,0.00018215,2]
[330564287,1719575441068,-16016.94538656,0.00018215,2]
[330564288,1719575441081,-1619.20385,0.00018215,2]
[330564289,1719575441092,-2344.57,0.00018215,2]
[330564290,1719575441104,-308.94361421,0.00018215,2]
[330564291,1719575441116,-727.11137031,0.00018215,2]
[330564292,1719575441128,-1273.216,0.00018215,2]
[330564293,1719575441139,-461.75544879,0.00018215,2]
[330564294,1719575441162,-675.87122045,0.00018215,2]
[330564295,1719575441173,-1655.05436443,0.00018215,2]
[330564296,1719575441211,-2161.914264,0.00018215,2]
[330564304,1719575442538,-712.73989841,0.00017807,2]
[330564306,1719575442550,-3250.70146499,0.00017807,2]
[330564308,1719575442560,-10949.41448125,0.00018215,2]
[330564310,1719575442569,-2887.51349806,0.00018215,2]
[330564312,1719575442581,-344.447979,0.00018215,2]
[330564315,1719575442605,-350.62,0.00018215,2]
[330564317,1719575442616,-1589.41852294,0.00018215,2]
[330564319,1719575442625,-859.18147706,0.00018215,2]
[330564320,1719575442672,-2964.19924407,0.00018215,2]